[Event "FIDE Womens Grand Swiss 2023"]
[Site "Douglas/Isle of Man"]
[Date "2023.11.04"]
[Round "10.22"]
[White "Lee, Alice"]
[Black "Savitha Shri B"]
[Result "1/2-1/2"]
[ECO "A65"]
[WhiteElo "2388"]
[BlackElo "2375"]
[Annotator "ChessBase"]
[PlyCount "154"]
[EventDate "2023.10.04"]
[EventType "swiss"]
[EventCountry "GBR"]
[SourceTitle "playchess.com"]
[Source "ChessBase"]
[SourceQuality "1"]
[TimeControl "40/6000+30:20/3000+30:900+30"]

1. d4 {[%emt 0:10:03]} c5 {[%emt 0:10:24]} 2. d5 {[%emt 0:00:07]} d6 {[%emt 0:00:12]} 3. e4 {[%emt 0:02:22]} g6 {[%emt 0:00:17]} 4. c4 {[%emt 0:03:59]} Bg7 {[%emt 0:00:08]} 5. Ne2 {[%emt 0:01:21]} Nf6 {[%emt 0:05:33]} 6. Ng3 {[%emt 0:00:39]} O-O {[%emt 0:01:32]} 7. Nc3 {[%emt 0:00:09]} e6 {[%emt 0:02:35]} 8. Be2 {[%emt 0:00:10]} exd5 {[%emt 0:01:27]} 9. cxd5 {[%emt 0:00:07]} Nbd7 {[%emt 0:04:11]} 10. O-O {[%emt 0:03:02]} Re8 {[%emt 0:06:31]} 11. a4 {[%emt 0:09:09]} a6 {[%emt 0:02:53]} 12. Be3 {[%emt 0:07:07]} h5 {[%emt 0:09:44]} 13. Bg5 {[%emt 0:02:11]} Qb6 {[%emt 0:01:04]} 14. Qd2 {[%emt 0:02:33]} Nh7 {[%emt 0:01:32]} 15. Bh6 {[%emt 0:00:35]} h4 {[%emt 0:04:57]} 16. Bxg7 {[%emt 0:02:07]} Kxg7 {[%emt 0:03:46]} 17. Nh1 {[%emt 0:00:16]} Ndf6 {[%emt 0:03:32]} 18. f3 {[%emt 0:02:58]} Bd7 {[%emt 0:09:53]} 19. Nf2 {[%emt 0:05:10]} Qb4 {[%emt 0:02:37]} 20. Ra2 {[%emt 0:05:10]} b5 {[%emt 0:05:33]} 21. Qf4 {[%emt 0:00:57]} c4 {[%emt 0:00:56]} 22. axb5 {[%emt 0:05:09]} axb5 {[%emt 0:01:40]} 23. Rfa1 {[%emt 0:00:09]} Rxa2 {[%emt 0:01:42]} 24. Rxa2 {[%emt 0:00:03]} Qc5 {[%emt 0:01:21]} 25. Qd2 {[%emt 0:02:57]} Rb8 {[%emt 0:03:32]} 26. Ncd1 {[%emt 0:05:31]} b4 {[%emt 0:02:22]} 27. Ra1 {[%emt 0:01:42]} Bb5 {[%emt 0:08:52]} 28. Rc1 {[%emt 0:00:36]} Nd7 {[%emt 0:04:15]} 29. Bxc4 {[%emt 0:03:58]} Bxc4 {[%emt 0:01:59]} 30. Ne3 {[%emt 0:00:11]} Nb6 {[%emt 0:03:52]} 31. b3 {[%emt 0:01:03]} Ra8 {[%emt 0:00:17]} 32. Qb2+ {[%emt 0:00:51]} Kg8 {[%emt 0:01:30]} 33. Nxc4 {[%emt 0:01:10]} Nxc4 {[%emt 0:00:19]} 34. Rxc4 {[%emt 0:01:22]} Qe3 {[%emt 0:00:08]} 35. Kf1 {[%emt 0:00:20]} Rb8 {[%emt 0:04:44]} 36. Ng4 {[%emt 0:00:34]} Qd3+ {[%emt 0:01:12]} 37. Kf2 {[%emt 0:01:29]} f6 {[%emt 0:00:44]} 38. Rc7 {[%emt 0:02:42]} Ra8 {[%emt 0:00:35]} 39. Rc4 {[%emt 0:05:51]} Qd1 {[%emt 0:00:50]} 40. Qc2 {[%emt 0:01:28]} Qa1 {[%emt 0:00:37]} 41. Rc8+ {[%emt 0:53:48]} Rxc8 {[%emt 0:50:14]} 42. Qxc8+ {[%emt 0:00:03]} Nf8 {[%emt 0:00:06]} 43. Ne3 {[%emt 0:02:56]} Qd4 {[%emt 0:00:00]} 44. Ke2 {[%emt 0:00:00]} Qa1 {[%emt 0:00:00]} 45. h3 {[%emt 0:00:00]} Qd4 {[%emt 0:00:00]} 46. Qc4 {[%emt 0:00:00]} Qb2+ {[%emt 0:00:00]} 47. Qc2 {[%emt 0:00:00]} Qa1 {[%emt 0:00:00]} 48. f4 {[%emt 0:00:00]} Qd4 {[%emt 0:00:00]} 49. Qc4 {[%emt 0:00:00]} Qb2+ {[%emt 0:00:00]} 50. Kf3 {[%emt 0:00:00]} Qd2 {[%emt 0:00:00]} 51. Qc6 {[%emt 0:00:00]} Qe1 {[%emt 0:00:00]} 52. Qxd6 {[%emt 0:05:03]} Qg3+ {[%emt 0:00:00]} 53. Ke2 {[%emt 0:00:03]} g5 {[%emt 0:00:00]} 54. Qxf6 {[%emt 0:00:19]} gxf4 {[%emt 0:00:00]} 55. Ng4 {[%emt 0:00:06]} Qxg2+ {[%emt 0:00:00]} 56. Nf2 {[%emt 0:00:01]} Qg3 {[%emt 0:00:00]} 57. Qd4 {[%emt 0:05:48]} Qxb3 {[%emt 0:00:00]} 58. e5 {[%emt 0:03:55]} f3+ {[%emt 0:00:00]} 59. Kf1 {[%emt 0:02:14]} Qb1+ {[%emt 0:04:20]} 60. Nd1 {[%emt 0:00:18]} Qf5 {[%emt 0:02:00]} 61. Nf2 {[%emt 0:17:20]} b3 {[%emt 0:15:36]} 62. e6 {[%emt 0:00:43]} Qg5 {[%emt 0:01:43]} 63. Ng4 {[%emt 0:02:17]} Nh7 {[%emt 0:00:01]} 64. e7 {[%emt 0:00:48]} Kf7 {[%emt 0:01:00]} 65. d6 {[%emt 0:01:07]} Qc1+ {[%emt 0:00:37]} 66. Kf2 {[%emt 0:00:02]} Qc2+ {[%emt 0:00:41]} 67. Kxf3 {[%emt 0:00:03]} Ng5+ {[%emt 0:00:30]} 68. Ke3 {[%emt 0:00:05]} Qc1+ {[%emt 0:01:08]} 69. Ke2 {[%emt 0:00:24]} Qc2+ {[%emt 0:00:12]} 70. Kf1 {[%emt 0:00:56]} Qc1+ {[%emt 0:00:21]} 71. Ke2 {[%emt 0:01:07]} Qc2+ {[%emt 0:00:10]} 72. Kf1 {[%emt 0:00:49]} Qc1+ {[%emt 0:00:31]} 73. Ke2 {[%emt 0:01:05]} Qc2+ {[%emt 0:00:04]} 74. Kf1 {[%emt 0:00:58]} Qb1+ {[%emt 0:01:28]} 75. Ke2 {[%emt 0:01:13]} Qc2+ {[%emt 0:00:04]} 76. Kf1 {[%emt 0:00:11]} Qb1+ {[%emt 0:02:18]} 77. Ke2 {[%emt 0:00:02]} Qc2+ {[%emt 0:00:04]} 1/2-1/2

[Event "FIDE Womens Grand Swiss 2023"]
[Site "Douglas/Isle of Man"]
[Date "2023.11.04"]
[Round "10.23"]
[White "Hoang, Thanh Trang"]
[Black "Kanyamarala, Trisha"]
[Result "1-0"]
[ECO "D05"]
[WhiteElo "2398"]
[BlackElo "2184"]
[Annotator "ChessBase"]
[PlyCount "95"]
[EventDate "2023.10.04"]
[EventType "swiss"]
[EventCountry "GBR"]
[SourceTitle "playchess.com"]
[Source "ChessBase"]
[SourceQuality "1"]
[TimeControl "40/6000+30:20/3000+30:900+30"]

1. d4 {[%emt 0:10:06]} Nf6 {[%emt 0:10:07]} 2. Nf3 {[%emt 0:00:14]} d5 {[%emt 0:00:13]} 3. e3 {[%emt 0:00:31]} e6 {[%emt 0:00:24]} 4. Bd3 {[%emt 0:00:26]} c5 {[%emt 0:00:23]} 5. O-O {[%emt 0:00:48]} Be7 {[%emt 0:07:45]} 6. b3 {[%emt 0:00:57]} Nbd7 {[%emt 0:03:22]} 7. Bb2 {[%emt 0:01:55]} b6 {[%emt 0:01:58]} 8. Nbd2 {[%emt 0:00:51]} Bb7 {[%emt 0:00:46]} 9. Ne5 {[%emt 0:02:14]} O-O {[%emt 0:02:04]} 10. Qf3 {[%emt 0:06:24]} g6 {[%emt 0:16:19]} 11. Rad1 {[%emt 0:04:02]} Qc7 {[%emt 0:04:39]} 12. Qh3 {[%emt 0:03:36]} Nxe5 {[%emt 0:08:50]} 13. dxe5 {[%emt 0:02:15]} Ne4 {[%emt 0:02:14]} 14. Bxe4 {[%emt 0:17:26]} dxe4 {[%emt 0:00:06]} 15. Qg4 {[%emt 0:01:17]} Qc6 {[%emt 0:01:50]} 16. Rfe1 {[%emt 0:05:40]} b5 {[%emt 0:03:55]} 17. c4 {[%emt 0:02:38]} a6 {[%emt 0:01:14]} 18. Rc1 {[%emt 0:08:49]} Rfd8 {[%emt 0:04:25]} 19. Nf1 {[%emt 0:00:20]} h5 {[%emt 0:06:02]} 20. Qe2 {[%emt 0:01:05]} Rd3 {[%emt 0:02:26]} 21. Qc2 {[%emt 0:01:49]} Rad8 {[%emt 0:07:23]} 22. Qb1 {[%emt 0:03:32]} Kg7 {[%emt 0:04:24]} 23. h3 {[%emt 0:02:04]} Qe8 {[%emt 0:02:03]} 24. Ng3 {[%emt 0:02:00]} Qh8 {[%emt 0:02:51]} 25. Red1 {[%emt 0:06:42]} R8d7 {[%emt 0:04:05]} 26. Rxd3 {[%emt 0:01:49]} exd3 {[%emt 0:01:37]} 27. Rd1 {[%emt 0:01:01]} Qd8 {[%emt 0:01:28]} 28. Bc3 {[%emt 0:01:11]} Bf8 {[%emt 0:03:37]} 29. Rd2 {[%emt 0:04:43]} Kg8 {[%emt 0:07:06]} 30. f4 {[%emt 0:03:19]} h4 {[%emt 0:00:44]} 31. Nh1 {[%emt 0:00:57]} Qa8 {[%emt 0:00:34]} 32. Qf1 {[%emt 0:00:59]} bxc4 {[%emt 0:00:35]} 33. bxc4 {[%emt 0:00:09]} a5 {[%emt 0:00:15]} 34. Nf2 {[%emt 0:01:50]} Ba6 {[%emt 0:00:11]} 35. Ng4 {[%emt 0:02:14]} Be7 {[%emt 0:00:07]} 36. Qf2 {[%emt 0:04:45]} Bxc4 {[%emt 0:00:27]} 37. Nf6+ {[%emt 0:00:28]} Bxf6 {[%emt 0:00:04]} 38. exf6 {[%emt 0:00:08]} Qd5 {[%emt 0:02:13]} 39. Qxh4 {[%emt 0:01:21]} Qh5 {[%emt 0:00:23]} 40. Qf2 {[%emt 0:03:33]} Qd5 {[%emt 0:00:48]} 41. e4 {[%emt 0:30:57]} Qh5 {[%emt 0:27:48]} 42. Be5 {[%emt 0:03:05]} Ba6 {[%emt 0:07:45]} 43. Qxc5 {[%emt 0:00:52]} Qh4 {[%emt 0:02:31]} 44. Kh2 {[%emt 0:02:25]} Qe1 {[%emt 0:03:00]} 45. Rb2 {[%emt 0:01:34]} Rd8 {[%emt 0:01:55]} 46. Qb6 {[%emt 0:03:40]} Rf8 {[%emt 0:02:44]} 47. Qxa6 {[%emt 0:00:47]} d2 {[%emt 0:00:18]} 48. Qd6 {[%emt 0:00:26]} 1-0

[Event "FIDE Womens Grand Swiss 2023"]
[Site "Douglas/Isle of Man"]
[Date "2023.11.04"]
[Round "10.24"]
[White "Gomez Barrera, Javiera Belen"]
[Black "Arakhamia-Grant, Ketevan"]
[Result "0-1"]
[ECO "B32"]
[WhiteElo "2266"]
[BlackElo "2297"]
[Annotator "ChessBase"]
[PlyCount "142"]
[EventDate "2023.10.04"]
[EventType "swiss"]
[EventCountry "GBR"]
[SourceTitle "playchess.com"]
[Source "ChessBase"]
[SourceQuality "1"]
[TimeControl "40/6000+30:20/3000+30:900+30"]

1. e4 {[%emt 0:10:03]} c5 {[%emt 0:10:07]} 2. Nf3 {[%emt 0:00:06]} Nc6 {[%emt 0:00:08]} 3. d4 {[%emt 0:00:06]} cxd4 {[%emt 0:00:04]} 4. Nxd4 {[%emt 0:00:04]} e5 {[%emt 0:00:07]} 5. Nb5 {[%emt 0:00:03]} d6 {[%emt 0:00:05]} 6. c4 {[%emt 0:00:05]} Be6 {[%emt 0:00:18]} 7. N5c3 {[%emt 0:01:34]} Be7 {[%emt 0:03:59]} 8. Na3 {[%emt 0:00:41]} Nf6 {[%emt 0:00:37]} 9. Nc2 {[%emt 0:00:18]} O-O {[%emt 0:00:38]} 10. Be2 {[%emt 0:00:32]} Rc8 {[%emt 0:15:06]} 11. O-O {[%emt 0:03:17]} Nb8 {[%emt 0:13:42]} 12. Ne3 {[%emt 0:08:00]} Nbd7 {[%emt 0:03:29]} 13. Bd3 {[%emt 0:21:34]} a6 {[%emt 0:02:49]} 14. Qe2 {[%emt 0:11:19]} Nc5 {[%emt 0:05:17]} 15. Bc2 {[%emt 0:00:13]} g6 {[%emt 0:01:19]} 16. Rd1 {[%emt 0:22:27]} Bd7 {[%emt 0:06:19]} 17. Ned5 {[%emt 0:02:10]} Nxd5 {[%emt 0:01:10]} 18. Nxd5 {[%emt 0:01:02]} Bg5 {[%emt 0:15:46]} 19. Be3 {[%emt 0:12:45]} Bxe3 {[%emt 0:09:20]} 20. fxe3 {[%emt 0:00:35]} Kh8 {[%emt 0:06:48]} 21. Nc3 {[%emt 0:06:34]} Qb6 {[%emt 0:07:06]} 22. b3 {[%emt 0:00:41]} Be6 {[%emt 0:01:54]} 23. Qd2 {[%emt 0:01:00]} Rcd8 {[%emt 0:01:50]} 24. Kh1 {[%emt 0:01:22]} a5 {[%emt 0:01:16]} 25. Rab1 {[%emt 0:04:32]} Qc6 {[%emt 0:00:19]} 26. Rf1 {[%emt 0:01:07]} b6 {[%emt 0:00:32]} 27. Rf2 {[%emt 0:00:54]} Qb7 {[%emt 0:01:28]} 28. Rbf1 {[%emt 0:00:20]} Qe7 {[%emt 0:00:18]} 29. a3 {[%emt 0:01:02]} Qg5 {[%emt 0:00:34]} 30. Qe2 {[%emt 0:00:26]} Rc8 {[%emt 0:02:12]} 31. Nb5 {[%emt 0:00:26]} Qe7 {[%emt 0:00:46]} 32. Rd1 {[%emt 0:00:36]} Rfd8 {[%emt 0:00:08]} 33. a4 {[%emt 0:00:29]} h5 {[%emt 0:00:22]} 34. h3 {[%emt 0:00:33]} Kg7 {[%emt 0:00:10]} 35. Qf3 {[%emt 0:00:27]} Rd7 {[%emt 0:00:46]} 36. Rfd2 {[%emt 0:00:21]} Rcd8 {[%emt 0:00:22]} 37. Qg3 {[%emt 0:00:16]} Nb7 {[%emt 0:00:58]} 38. Rf1 {[%emt 0:00:55]} h4 {[%emt 0:00:41]} 39. Qf2 {[%emt 0:00:20]} Nc5 {[%emt 0:00:21]} 40. Rfd1 {[%emt 0:00:33]} Nb7 {[%emt 0:00:21]} 41. Nc3 {[%emt 0:26:53]} Rf8 {[%emt 0:28:29]} 42. Qf3 {[%emt 0:07:25]} Qg5 {[%emt 0:03:34]} 43. Nb5 {[%emt 0:03:14]} Qd8 {[%emt 0:05:02]} 44. Qe2 {[%emt 0:02:49]} Qe7 {[%emt 0:01:14]} 45. Rf1 {[%emt 0:04:36]} Nc5 {[%emt 0:01:05]} 46. Rfd1 {[%emt 0:00:35]} Rfd8 {[%emt 0:00:16]} 47. Qf3 {[%emt 0:01:06]} g5 {[%emt 0:04:10]} 48. Rf1 {[%emt 0:04:04]} g4 {[%emt 0:02:03]} 49. hxg4 {[%emt 0:00:08]} Qg5 {[%emt 0:00:09]} 50. Bd1 {[%emt 0:00:40]} Qg6 {[%emt 0:01:55]} 51. Nc3 {[%emt 0:00:19]} Rh8 {[%emt 0:02:42]} 52. Kg1 {[%emt 0:02:13]} Rh6 {[%emt 0:00:59]} 53. Rdf2 {[%emt 0:01:33]} Rd8 {[%emt 0:04:53]} 54. Rd2 {[%emt 0:01:31]} Kg8 {[%emt 0:00:53]} 55. Nd5 {[%emt 0:00:28]} Bxd5 {[%emt 0:00:25]} 56. exd5 {[%emt 0:00:15]} Ne4 {[%emt 0:00:24]} 57. Rb2 {[%emt 0:00:32]} h3 {[%emt 0:00:30]} 58. gxh3 {[%emt 0:00:47]} Ng5 {[%emt 0:00:06]} 59. Qg2 {[%emt 0:00:30]} Nxh3+ {[%emt 0:00:33]} 60. Kh1 {[%emt 0:00:08]} Nf4+ {[%emt 0:00:00]} 61. Qh2 {[%emt 0:14:31]} Qe4+ {[%emt 0:15:56]} 62. Rf3 {[%emt 0:00:24]} Rxh2+ {[%emt 0:00:23]} 63. Rxh2 {[%emt 0:00:40]} Nd3 {[%emt 0:00:42]} 64. Kg1 {[%emt 0:00:12]} Kf8 {[%emt 0:00:28]} 65. Kf1 {[%emt 0:01:31]} Ke7 {[%emt 0:00:17]} 66. Rh5 {[%emt 0:00:19]} Nc5 {[%emt 0:00:47]} 67. Rhf5 {[%emt 0:00:39]} Rf8 {[%emt 0:00:37]} 68. g5 {[%emt 0:00:09]} Qd3+ {[%emt 0:00:29]} 69. Be2 {[%emt 0:00:07]} Qb1+ {[%emt 0:00:16]} 70. Kg2 {[%emt 0:00:01]} Nd7 {[%emt 0:00:28]} 71. g6 {[%emt 0:00:23]} fxg6 {[%emt 0:00:35]} 0-1

[Event "FIDE Womens Grand Swiss 2023"]
[Site "Douglas/Isle of Man"]
[Date "2023.11.05"]
[Round "11.9"]
[White "Goryachkina, Aleksandra"]
[Black "Dronavalli, Harika"]
[Result "1/2-1/2"]
[ECO "E05"]
[WhiteElo "2558"]
[BlackElo "2502"]
[Annotator "TA"]
[PlyCount "126"]
[EventDate "2023.10.04"]
[EventType "swiss"]
[EventCountry "GBR"]
[SourceTitle "playchess.com"]
[Source "ChessBase"]
[SourceQuality "1"]
[TimeControl "40/6000+30:20/3000+30:900+30"]

{[%evp 13,126,4,10,17,16,24,40,30,29,31,39,49,49,0,15,23,32,32,35,41,20,30,30,32,60,62,64,62,63,56,50,60,59,47,69,54,101,87,105,119,101,17,20,3,60,47,60,20,64,64,64,64,64,67,67,60,60,60,243,89,266,266,266,266,266,266,532,501,474,458,470,421,756,731,1316,807,1160,1103,857,857,733,66,1208,0,0,0,0,0,0,0,0,0,0,0,0,0,0,0,0,0,0,0,0,0,0,0,0,0,0,0,0,0,0,0,0]} 1. d4 {[%emt 0:10:10]} d5 {[%emt 0:10:20]} 2. c4 {[%emt 0:00:12]} e6 {[%emt 0:01:20]} 3. Nf3 {[%emt 0:00:14]} Nf6 {[%emt 0:00:15]} 4. g3 {[%emt 0:00:13]} Be7 {[%emt 0:01:02]} 5. Bg2 {[%emt 0:00:23]} O-O {[%emt 0:00:16]} 6. O-O {[%emt 0:00:21]} dxc4 {[%emt 0:01:44]} 7. Qc2 {[%emt 0:00:26]} b5 {[%emt 0:01:43]} 8. a4 {[%emt 0:00:38] E05: Open Catalan: 5 Nf3 Be7.} b4 {[%emt 0:00:45]} 9. Nfd2 {[%emt 0:00:56]} Nd5 $1 {[%emt 0:00:53] 9...Nd5 is better than 9...c6.} 10. Nxc4 {[%emt 0:01:04] White is slightly better.} c5 {[%emt 0:00:55]} 11. dxc5 {[%emt 0:00:34]} Bxc5 {[%emt 0:00:45]} 12. e4 {[%emt 0:09:47]} Nb6 {[%emt 0:00:56] [#]} 13. Be3 $5 $146 {[%emt 0:07:41][%mdl 8] An interesting novelty.} (13. Ncd2 $14 {should be considered.} Na6 14. Nb3) ({Predecessor:} 13. Ncd2 N8d7 14. a5 Ba6 15. axb6 Rc8 16. Qd1 Qxb6 17. Nb3 Bxf1 18. Qxf1 h6 19. N1d2 {1-0 Maghsoodloo,P (2721)-Wang,H (2722) Shusha Blitz 2022 (14)}) 13... Qe7 {[%emt 0:17:33]} 14. Nxb6 {[%emt 0:02:09]} axb6 {[%emt 0:15:03]} 15. Bxc5 {[%emt 0:00:45]} bxc5 {[%emt 0:01:07]} 16. Nd2 {[%emt 0:00:45]} Ba6 {[%emt 0:01:35]} 17. Rfc1 {[%emt 0:02:30][%cal Oe4e5] Threatens to win with e5!} Nd7 {[%emt 0:01:35]} 18. Bf1 {[%emt 0:04:50]} Rfc8 {[%emt 0:03:13]} 19. Bxa6 {[%emt 0:03:37]} Rxa6 {[%emt 0:00:05]} 20. Nc4 {[%emt 0:01:53]} Nb6 {[%emt 0:01:56]} 21. b3 {[%emt 0:14:01]} Nxc4 {[%emt 0:04:24]} 22. Qxc4 {[%emt 0:00:07]} Rd6 {[%emt 0:01:50]} 23. a5 {[%emt 0:04:05][%cal Ba4a5,Ba5a6][%mdl 32]} h5 {[%emt 0:02:34]} 24. Rd1 {[%emt 0:05:36]} Rdc6 {[%emt 0:23:40]} (24... h4 $14) 25. a6 $16 {[%emt 0:05:33]} Ra8 {[%emt 0:00:37] [#]} 26. Qb5 $1 {[%emt 0:07:06]} Qc7 {[%emt 0:02:56]} 27. Rdc1 {[%emt 0:03:09] White is more active.} (27. a7 $16) 27... Ra7 {[%emt 0:06:52]} 28. Ra5 {[%emt 0:02:14]} g6 {[%emt 0:02:46]} (28... h4 $1 $11) 29. Kg2 {[%emt 0:05:02]} (29. Rxc5 {simplifies} Rxc5 30. Qxc5 Qxc5 31. Rxc5 Rxa6 32. Rb5) 29... Kh7 {[%emt 0:00:29]} 30. h4 {[%emt 0:03:46][%cal Rc1c5]} (30. Rxc5 {simplifies} Rxc5 31. Qxc5 Qxc5 32. Rxc5 Rxa6 33. Rb5) 30... Qb6 {[%emt 0:02:25]} 31. Qxb6 {[%emt 0:01:56]} Rxb6 {[%emt 0:00:01]} 32. Rcxc5 {[%emt 0:00:07]} Raxa6 {[%emt 0:00:15]} 33. Rxa6 {[%emt 0:00:08]} Rxa6 $14 {[%emt 0:00:06][%mdl 4096] Endgame KR-KR} 34. Rb5 {[%emt 0:00:05]} e5 {[%emt 0:03:50]} 35. Rxb4 {[%emt 0:00:39]} Ra2 $2 {[%emt 0:00:03]} (35... Kg7 $14) 36. Rb8 $2 {[%emt 0:04:24]} (36. Rb7 $18 {and White stays clearly on top.}) 36... Rb2 $2 {[%emt 0:00:15]} (36... f6 $16 37. b4 Ra4) 37. b4 $18 {[%emt 0:01:03][%cal Bb3b4,Bb4b5][%mdl 32]} Kg7 {[%emt 0:00:16]} 38. b5 {[%emt 0:02:11]} Rb4 {[%emt 0:00:23] [#]} 39. Kf3 {[%emt 0:01:30]} Rb3+ $2 {[%emt 0:00:14]} (39... f5 {keeps fighting.} 40. exf5 gxf5) 40. Ke2 {[%emt 0:00:38]} Rb2+ {[%emt 0:00:47]} 41. Ke3 {[%emt 0:51:13]} Rb3+ {[%emt 0:51:11]} 42. Kd2 {[%emt 0:01:44]} Rb2+ {[%emt 0:00:00]} (42... f5 $142 43. b6 fxe4) 43. Kc3 {[%emt 0:00:00]} Rxf2 {[%emt 0:00:00]} 44. b6 {[%emt 0:00:00]} Rf1 {[%emt 0:00:00]} 45. Kc4 {[%emt 0:00:00]} Rb1 {[%emt 0:00:00]} 46. Kd5 {[%emt 0:00:00]} Rb3 {[%emt 0:00:00]} 47. Kxe5 $2 {[%emt 0:00:00]} ({Only move:} 47. Rb7 $18 Rxg3 48. Rd7 (48. Kxe5 Rb3 $11)) 47... Rxg3 $14 {[%emt 0:00:00]} 48. Rc8 $2 {[%emt 0:00:00]} ({Better is} 48. Kd5 $18 {aiming for Rc8.} Rb3 49. Kc6 Rc3+ 50. Kd6) 48... Rb3 $11 {[%emt 0:00:00] ...Rb5+ would be deadly. The position is equal.} 49. Rc6 {[%emt 0:00:00]} g5 $1 {[%emt 0:00:00]} 50. hxg5 {[%emt 0:00:00] Black must now prevent Kd6.} h4 $1 {[%emt 0:00:00]} 51. Kd5 {[%emt 0:00:00]} h3 {[%emt 0:00:00]} 52. Rh6 {[%emt 0:00:00]} h2 {[%emt 0:00:00]} 53. Kc6 {[%emt 0:00:00]} Rc3+ {[%emt 0:00:00]} 54. Kb7 {[%emt 0:01:12]} Rc2 {[%emt 0:00:00]} 55. e5 {[%emt 0:00:11]} Rb2 {[%emt 0:00:00]} 56. Ka7 {[%emt 0:00:34]} Ra2+ {[%emt 0:00:00]} 57. Kb8 {[%emt 0:00:21]} Rc2 {[%emt 0:00:00]} 58. b7 {[%emt 0:00:26]} Rb2 {[%emt 0:00:00]} 59. Kc7 {[%emt 0:04:36]} Rc2+ {[%emt 0:00:00]} 60. Kb6 {[%emt 0:00:37]} Rb2+ {[%emt 0:00:00]} 61. Kc6 {[%emt 0:15:22][%cal Oh6h2] Strongly threatening Rxh2!} (61. Ka7 $5 Ra2+ $8 62. Kb6 Rb2+ 63. Kc6 Rc2+ 64. Kd6 $11) 61... Rc2+ {[%emt 0:12:48]} 62. Kd5 {[%emt 0:00:07]} Rb2 {[%emt 0:00:17]} 63. Rxh2 {[%emt 0:00:31][%mdl 64] Promotion} Rxb7 {[%emt 0:00:04] Black defended with fortune.   Weighted Error Value: White=0.21 (precise) /Black=0.22 (precise)} 1/2-1/2